[Event "Israel-ch Youth U8-18 2024"]
[Site "Kfar Saba"]
[Date "2024.04.16"]
[Round "1.1"]
[White "Rozen, Eytan"]
[Black "Andreev, Robert"]
[Result "1-0"]
[ECO "D02"]
[WhiteElo "2499"]
[BlackElo "1820"]
[Annotator "TA"]
[PlyCount "47"]
[EventDate "2024.04.10"]
[EventType "swiss"]
[EventCountry "ISR"]
[SourceTitle "playchess.com"]
[Source "ChessBase"]
[SourceQuality "1"]
[TimeControl "5400+30"]

{[%evp 9,47,0,0,-5,0,-7,3,-6,13,0,8,-3,0,-10,-4,-18,-12,-15,-11,-12,-7,-5,-8,-6,-3,-6,0,0,0,0,16,9,370,371,356,372,379,379,362,371]} 1. d4 {[%emt 0:02:11]} Nf6 {[%emt 0:00:11]} 2. Nf3 {[%emt 0:00:13]} d5 {[%emt 0:01:05]} 3. c3 {[%emt 0:01:02]} Bf5 {[%emt 0:03:02]} 4. Qb3 {[%emt 0:00:21]} Qc8 {[%emt 0:01:13]} 5. Bg5 {[%emt 0:00:22]} Nbd7 {[%emt 0:01:16]} 6. c4 {[%emt 0:00:19]} e6 {[%emt 0:02:05]} 7. Nc3 {[%emt 0:01:13]} c6 {[%emt 0:02:43]} 8. Rc1 {[%emt 0:02:07] The position is equal.} Qb8 {[%emt 0:10:03]} 9. e3 {[%emt 0:02:25]} Bd6 {[%emt 0:01:50] Repels Bf4} 10. Be2 {[%emt 0:02:29]} O-O {[%emt 0:01:26]} 11. Bh4 {[%emt 0:02:40]} a6 {[%emt 0:08:50]} 12. cxd5 {[%emt 0:01:47]} cxd5 {[%emt 0:04:17]} 13. Bg3 {[%emt 0:02:05]} b5 {[%emt 0:03:21]} 14. O-O {[%emt 0:01:11]} Bxg3 {[%emt 0:03:33]} 15. hxg3 {[%emt 0:00:11]} h6 {[%emt 0:01:35]} 16. Qb4 {[%emt 0:02:21]} Rc8 {[%emt 0:02:41]} 17. Nd2 {[%emt 0:04:31]} Qb6 {[%emt 0:03:57]} 18. a4 {[%emt 0:06:09]} bxa4 {[%emt 0:03:18]} 19. Qa3 {[%emt 0:00:23]} Rcb8 {[%emt 0:09:27][%cal Bc8b8,Bb8b4,Bb4a4][%mdl 32]} 20. Nxa4 {[%emt 0:00:27]} Qb4 {[%emt 0:01:01][%mdl 8192] [#] This move loses the game for Black.} (20... Qb7 $11) 21. Rc8+ $3 $18 {[%emt 0:00:20][%cal Bc1c8,Bc8a8,Ba8a6][%mdl 544] White is winning.} Kh7 {[%emt 0:01:42]} 22. Qxb4 {[%emt 0:00:47]} Rxb4 {[%emt 0:00:10]} 23. Rxa8 {[%emt 0:00:10]} Rxa4 {[%emt 0:00:09]} 24. Rxa6 {[%emt 0:00:15] Weighted Error Value: White=0.05 (flawless) /Black=0.39.  Loses game:     	---       	Black=1      OK:         	White=8     	Black=5      Best:        	---       	Black=1      Brilliant:      	White=1     	---} ({Not} 24. Bxa6 g5 25. Nb3 Ra2 $18) 1-0

[Event "Israel-ch Youth U8-18 2024"]
[Site "Kfar Saba"]
[Date "2024.04.16"]
[Round "1.2"]
[White "Gurevich, Hillel"]
[Black "Sokolovsky, Yahli"]
[Result "0-1"]
[ECO "B20"]
[WhiteElo "1832"]
[BlackElo "2490"]
[Annotator "RC"]
[PlyCount "57"]
[EventDate "2024.04.10"]
[EventType "swiss"]
[EventCountry "ISR"]
[SourceTitle "playchess.com"]
[Source "ChessBase"]
[SourceQuality "1"]
[TimeControl "5400+30"]

1. e4 {[%emt 0:00:04]} c5 {[%emt 0:00:04]} 2. c4 {[%emt 0:00:20]} Nc6 {[%emt 0:00:05]} 3. Ne2 {[%emt 0:00:40]} e5 {[%emt 0:00:07]} 4. d3 {[%emt 0:00:48]} d6 {[%emt 0:00:37]} 5. Nbc3 {[%emt 0:00:59]} h5 {[%emt 0:02:36]} 6. f4 {[%emt 0:04:39]} g6 {[%emt 0:02:04]} 7. Be3 {[%emt 0:02:50]} Bh6 {[%emt 0:04:14]} 8. Qd2 {[%emt 0:10:01]} Nf6 {[%emt 0:04:38]} 9. h3 {[%emt 0:03:05]} Nd4 {[%emt 0:05:59]} 10. O-O-O {[%emt 0:03:53]} Be6 {[%emt 0:08:21]} 11. fxe5 {[%emt 0:06:15]} Bxe3 {[%emt 0:00:07]} 12. Qxe3 {[%emt 0:00:13]} dxe5 {[%emt 0:00:05]} 13. Qf2 {[%emt 0:08:34]} Nd7 {[%emt 0:09:07]} 14. Nxd4 {[%emt 0:06:45]} cxd4 {[%emt 0:10:03]} 15. Nd5 {[%emt 0:00:17]} Bxd5 {[%emt 0:03:32]} 16. exd5 {[%emt 0:01:26]} h4 {[%emt 0:04:58]} 17. Re1 {[%emt 0:03:27]} Kf8 {[%emt 0:04:19]} 18. Be2 {[%emt 0:04:07]} Kg7 {[%emt 0:00:45]} 19. g4 {[%emt 0:05:45]} Qg5+ {[%emt 0:09:58]} 20. Kc2 {[%emt 0:04:35]} b5 {[%emt 0:01:46]} 21. Rhf1 {[%emt 0:02:28]} Rhf8 {[%emt 0:00:02]} 22. b3 {[%emt 0:02:12]} a5 {[%emt 0:01:08]} 23. Rb1 {[%emt 0:02:52]} Nc5 {[%emt 0:02:38]} 24. Bf3 {[%emt 0:02:42]} Rab8 {[%emt 0:03:43]} 25. Be4 {[%emt 0:02:19]} Qe7 {[%emt 0:03:37]} 26. Rg1 {[%emt 0:02:50]} bxc4 {[%emt 0:01:33]} 27. bxc4 {[%emt 0:00:24]} Nxe4 {[%emt 0:01:30]} 28. dxe4 {[%emt 0:00:08]} Qa3 {[%emt 0:00:04]} 29. Kd1 {[%emt 0:20:22]} 0-1

[Event "Israel-ch Youth U8-18 2024"]
[Site "Kfar Saba"]
[Date "2024.04.16"]
[Round "1.3"]
[White "Levin, Guy"]
[Black "Gilad, Tomer"]
[Result "1-0"]
[ECO "D78"]
[WhiteElo "2451"]
[BlackElo "1797"]
[Annotator "RC"]
[PlyCount "141"]
[EventDate "2024.04.10"]
[EventType "swiss"]
[EventCountry "ISR"]
[SourceTitle "playchess.com"]
[Source "ChessBase"]
[SourceQuality "1"]
[TimeControl "5400+30"]

1. Nf3 {[%emt 0:00:18]} g6 {[%emt 0:00:44]} 2. d4 {[%emt 0:01:30]} Bg7 {[%emt 0:00:44]} 3. g3 {[%emt 0:00:25]} Nf6 {[%emt 0:02:27]} 4. Bg2 {[%emt 0:00:07]} O-O {[%emt 0:00:12]} 5. O-O {[%emt 0:00:04]} d5 {[%emt 0:05:25]} 6. c4 {[%emt 0:00:34]} c6 {[%emt 0:02:37]} 7. a4 {[%emt 0:00:08]} Ne4 {[%emt 0:01:27]} 8. Nc3 {[%emt 0:09:05]} Nxc3 {[%emt 0:13:25]} 9. bxc3 {[%emt 0:00:04]} dxc4 {[%emt 0:04:07]} 10. a5 {[%emt 0:05:31]} Bg4 {[%emt 0:11:09]} 11. Qa4 {[%emt 0:02:22]} e5 {[%emt 0:03:48]} 12. dxe5 {[%emt 0:23:19]} Nd7 {[%emt 0:01:10]} 13. Ba3 {[%emt 0:10:47]} Re8 {[%emt 0:01:38]} 14. Qxc4 {[%emt 0:00:37]} Be6 {[%emt 0:12:46]} 15. Qf4 {[%emt 0:07:23]} Qxa5 {[%emt 0:07:26]} 16. Bd6 {[%emt 0:00:04]} Qxc3 {[%emt 0:00:23]} 17. Rfc1 {[%emt 0:03:04]} Qb2 {[%emt 0:01:02]} 18. Rab1 {[%emt 0:03:40]} Qxe2 {[%emt 0:00:33]} 19. Rxb7 {[%emt 0:01:35]} Qa6 {[%emt 0:07:54]} 20. Rc7 {[%emt 0:06:30]} Rac8 {[%emt 0:00:41]} 21. Rxc8 {[%emt 0:02:42]} Rxc8 {[%emt 0:01:40]} 22. Nd4 {[%emt 0:00:02]} Bd5 {[%emt 0:02:21]} 23. Bh3 {[%emt 0:00:05]} Qb7 {[%emt 0:06:55]} 24. e6 {[%emt 0:00:27]} fxe6 {[%emt 0:00:50]} 25. Nxe6 {[%emt 0:00:15]} Re8 {[%emt 0:01:27]} 26. Nc7 {[%emt 0:05:03]} Re4 {[%emt 0:01:47]} 27. Qd2 {[%emt 0:04:47]} Qb2 {[%emt 0:01:11]} 28. Qxb2 {[%emt 0:02:09]} Bxb2 {[%emt 0:00:01]} 29. Rb1 {[%emt 0:01:20]} Be5 {[%emt 0:03:33]} 30. Nxd5 {[%emt 0:05:30]} Bxd6 {[%emt 0:02:03]} 31. Nc3 {[%emt 0:00:29]} Re7 {[%emt 0:00:19]} 32. Rd1 {[%emt 0:00:01]} Be5 {[%emt 0:00:28]} 33. Ne4 {[%emt 0:00:02]} Nf6 {[%emt 0:00:30]} 34. Rd8+ {[%emt 0:00:01]} Kg7 {[%emt 0:00:13]} 35. Nc5 {[%emt 0:00:04]} Kf7 {[%emt 0:01:07]} 36. Kg2 {[%emt 0:00:51]} Bc7 {[%emt 0:00:25]} 37. Rc8 {[%emt 0:00:19]} Bb6 {[%emt 0:00:47]} 38. Nd3 {[%emt 0:00:42]} Rc7 {[%emt 0:01:05]} 39. Ne5+ {[%emt 0:00:01]} Kg7 {[%emt 0:00:15]} 40. Ra8 {[%emt 0:01:16]} Re7 {[%emt 0:00:57]} 41. f4 {[%emt 0:00:10]} Re8 {[%emt 0:00:42]} 42. Rxe8 {[%emt 0:00:56]} Nxe8 {[%emt 0:00:12]} 43. Bd7 {[%emt 0:00:09]} Nd6 {[%emt 0:00:24]} 44. Bxc6 {[%emt 0:00:06]} Bd4 {[%emt 0:00:51]} 45. Nd3 {[%emt 0:00:09]} a5 {[%emt 0:00:18]} 46. Kf3 {[%emt 0:00:15]} Kf6 {[%emt 0:00:21]} 47. g4 {[%emt 0:00:13]} h6 {[%emt 0:00:33]} 48. Nc1 {[%emt 0:00:13]} Nc4 {[%emt 0:01:21]} 49. Ke4 {[%emt 0:00:12]} Bg1 {[%emt 0:00:49]} 50. h4 {[%emt 0:00:13]} g5 {[%emt 0:00:38]} 51. Kd3 {[%emt 0:02:15]} Nd6 {[%emt 0:01:05]} 52. fxg5+ {[%emt 0:00:11]} hxg5 {[%emt 0:00:01]} 53. h5 {[%emt 0:00:18]} Ke5 {[%emt 0:00:56]} 54. Ne2 {[%emt 0:00:23]} Bc5 {[%emt 0:00:02]} 55. Nc3 {[%emt 0:01:14]} Nf7 {[%emt 0:00:42]} 56. Bd7 {[%emt 0:00:44]} Nh6 {[%emt 0:00:42]} 57. Ne4 {[%emt 0:00:21]} Be7 {[%emt 0:00:06]} 58. Nc3 {[%emt 0:00:04]} Kf4 {[%emt 0:00:32]} 59. Nd5+ {[%emt 0:00:11]} Ke5 {[%emt 0:01:40]} 60. Nxe7 {[%emt 0:00:04]} a4 {[%emt 0:00:15]} 61. Kc3 {[%emt 0:01:55]} Kf6 {[%emt 0:00:40]} 62. Ng6 {[%emt 0:00:44]} Nf7 {[%emt 0:00:37]} 63. Bxa4 {[%emt 0:00:14]} Kg7 {[%emt 0:00:29]} 64. Kd4 {[%emt 0:00:33]} Nh6 {[%emt 0:00:02]} 65. Bd1 {[%emt 0:00:34]} Kf6 {[%emt 0:00:17]} 66. Ne5 {[%emt 0:00:17]} Ke6 {[%emt 0:00:35]} 67. Bb3+ {[%emt 0:00:09]} Kf6 {[%emt 0:00:07]} 68. Kd5 {[%emt 0:00:30]} Ke7 {[%emt 0:00:37]} 69. Kc6 {[%emt 0:00:16]} Kf6 {[%emt 0:00:11]} 70. Kd6 {[%emt 0:00:10]} Kg7 {[%emt 0:01:03]} 71. Ke7 {[%emt 0:09:04]} 1-0

[Event "Israel-ch Youth U8-18 2024"]
[Site "Kfar Saba"]
[Date "2024.04.16"]
[Round "1.4"]
[White "Vagman, Roy"]
[Black "Ingel, Mica Bar"]
[Result "1/2-1/2"]
[ECO "C63"]
[WhiteElo "2357"]
[BlackElo "1812"]
[Annotator "TA"]
[PlyCount "238"]
[EventDate "2024.04.10"]
[EventType "swiss"]
[EventCountry "ISR"]
[SourceTitle "playchess.com"]
[Source "ChessBase"]
[SourceQuality "1"]
[TimeControl "5400+30"]

{[%evp 163,238,0,0,0,0,0,0,0,0,0,0,0,0,0,0,0,0,0,0,0,0,0,0,0,0,0,0,0,0,0,0,0,0,0,0,0,0,0,0,0,0,0,0,0,0,0,0,0,0,0,0,0,0,0,0,0,0,0,0,0,0,0,0,0,0,0,0,0,0,0,0,0,0,0,0,0,0]} 1. e4 {[%emt 0:00:09]} e5 {[%emt 0:00:04]} 2. Nf3 {[%emt 0:00:06]} Nc6 {[%emt 0:00:07]} 3. Bb5 {[%emt 0:00:43]} f5 {[%emt 0:00:28]} 4. Nc3 {[%emt 0:00:10]} fxe4 {[%emt 0:00:21]} 5. Nxe4 {[%emt 0:00:06]} Nf6 {[%emt 0:00:14]} 6. Nxf6+ {[%emt 0:00:17]} Qxf6 {[%emt 0:00:08]} 7. Qe2 {[%emt 0:00:06]} Be7 {[%emt 0:00:16]} 8. Bxc6 {[%emt 0:00:08]} bxc6 {[%emt 0:00:30]} 9. d4 {[%emt 0:00:59] C63: Ruy Lopez: Schliemann/Jaenisch Defence.} Qg6 {[%emt 0:02:25]} 10. O-O {[%emt 0:00:08]} Bb7 $146 {[%emt 0:02:14]} ({Predecessor:} 10... d6 11. Qc4 d5 12. Qb3 e4 13. Ne5 Qe6 14. f4 O-O 15. Be3 Bd6 16. Qc3 c5 17. dxc5 Bxe5 18. fxe5 {1-0 Jakovenko,D (2749)-Ali Marandi,C (2540) TUR-chT Ankara 2018 (3.6)}) 11. Nxe5 {[%emt 0:04:17]} Qe6 {[%emt 0:19:18]} 12. Qh5+ {[%emt 0:04:58]} g6 {[%emt 0:04:53]} 13. Qg4 {[%emt 0:00:25]} Qxg4 {[%emt 0:01:53]} 14. Nxg4 {[%emt 0:00:02]} O-O-O {[%emt 0:03:22]} 15. Re1 {[%emt 0:01:14]} Rde8 {[%emt 0:02:55]} 16. Bh6 {[%emt 0:01:20]} Bd8 {[%emt 0:20:17]} 17. f4 {[%emt 0:05:49]} Be7 {[%emt 0:08:41]} 18. Bg5 {[%emt 0:08:03]} Bd8 {[%emt 0:01:50]} 19. Bxd8 {[%emt 0:03:12]} Kxd8 {[%emt 0:01:02]} 20. g3 {[%emt 0:00:34]} d6 {[%emt 0:01:41]} 21. Kf2 {[%emt 0:04:18]} h5 {[%emt 0:04:42]} 22. Rxe8+ {[%emt 0:03:58]} Kxe8 {[%emt 0:02:27]} 23. Re1+ {[%emt 0:02:31]} Kf7 {[%emt 0:02:08]} 24. Ne3 {[%emt 0:00:04]} Bc8 {[%emt 0:04:51]} 25. h4 {[%emt 0:04:28]} Be6 {[%emt 0:01:02]} 26. Rd1 {[%emt 0:01:22]} Rb8 {[%emt 0:01:56]} 27. b3 {[%emt 0:00:07]} Rb7 {[%emt 0:03:59]} 28. Rd3 {[%emt 0:00:41]} Bf5 {[%emt 0:03:02]} 29. Nxf5 {[%emt 0:02:40]} gxf5 {[%emt 0:00:06]} 30. Rc3 {[%emt 0:00:20]} Rb6 {[%emt 0:00:31]} 31. d5 {[%emt 0:00:35]} c5 {[%emt 0:00:14]} 32. Re3 {[%emt 0:00:02]} Rb8 {[%emt 0:03:04]} 33. Re6 {[%emt 0:01:12]} Rh8 {[%emt 0:02:21]} 34. a3 {[%emt 0:00:05]} a5 {[%emt 0:00:45]} 35. a4 {[%emt 0:02:17]} Rh7 {[%emt 0:00:37]} 36. Ke2 {[%emt 0:00:16]} Rg7 {[%emt 0:00:39]} 37. Rh6 {[%emt 0:02:25]} Rxg3 {[%emt 0:01:36]} 38. Rxh5 {[%emt 0:00:07]} Kf6 {[%emt 0:01:00]} 39. Rh8 {[%emt 0:02:50]} Rc3 {[%emt 0:00:52]} 40. Kd2 {[%emt 0:00:24]} Rf3 {[%emt 0:00:29]} 41. Rf8+ {[%emt 0:00:30]} Kg6 {[%emt 0:00:43]} 42. h5+ {[%emt 0:00:40]} Kxh5 {[%emt 0:00:04]} 43. Rxf5+ {[%emt 0:00:03]} Kg4 {[%emt 0:00:27]} 44. Rf7 {[%emt 0:00:16]} Rxf4 {[%emt 0:00:18]} 45. Rxc7 {[%emt 0:00:04]} Rd4+ {[%emt 0:00:50]} 46. Kc3 {[%emt 0:00:04]} Rxd5 {[%emt 0:00:20]} 47. Ra7 {[%emt 0:00:24]} Kf4 {[%emt 0:00:52]} 48. Rxa5 {[%emt 0:00:04]} Rd1 {[%emt 0:00:39]} 49. Rb5 {[%emt 0:01:12]} Ke4 {[%emt 0:00:39]} 50. Rb6 {[%emt 0:00:01]} Kd5 {[%emt 0:00:45]} 51. a5 {[%emt 0:00:47]} Ra1 {[%emt 0:00:09]} 52. a6 {[%emt 0:00:26]} Ra2 {[%emt 0:00:20]} 53. Kd3 {[%emt 0:02:51]} c4+ {[%emt 0:01:09]} 54. bxc4+ {[%emt 0:06:57]} Kc5 {[%emt 0:00:06]} 55. Rb8 {[%emt 0:00:07]} Rxa6 {[%emt 0:00:15]} 56. Rc8+ {[%emt 0:00:00]} Kb6 {[%emt 0:00:41]} 57. Kd4 {[%emt 0:01:06]} Ra5 {[%emt 0:00:22]} 58. Re8 {[%emt 0:01:29]} Rh5 {[%emt 0:00:23]} 59. Rd8 {[%emt 0:00:57]} Kc6 {[%emt 0:00:45]} 60. Kc3 {[%emt 0:00:01]} Rh3+ {[%emt 0:00:55]} 61. Kb4 {[%emt 0:00:06]} Rh2 {[%emt 0:00:12]} 62. Kb3 {[%emt 0:00:17]} Rh3+ {[%emt 0:00:31]} 63. c3 {[%emt 0:00:03]} Rh1 {[%emt 0:00:05]} 64. Rc8+ {[%emt 0:00:10]} Kb7 {[%emt 0:00:17]} 65. Rf8 {[%emt 0:00:13]} Kc6 {[%emt 0:00:34]} 66. Rf5 {[%emt 0:00:05]} Rh2 {[%emt 0:00:19]} 67. Rf1 {[%emt 0:00:26]} Rg2 {[%emt 0:00:12]} 68. Ra1 {[%emt 0:00:01]} Kb7 {[%emt 0:00:12]} 69. Ra5 {[%emt 0:01:19]} Rh2 {[%emt 0:00:22]} 70. c5 {[%emt 0:01:29]} dxc5 {[%emt 0:01:42]} 71. Rxc5 {[%emt 0:00:01]} Rh3 {[%emt 0:00:10]} 72. Kb4 {[%emt 0:00:09]} Rh4+ {[%emt 0:00:20]} 73. Kb5 {[%emt 0:00:06]} Rh3 {[%emt 0:00:39]} 74. Kb4 {[%emt 0:00:32]} Rh6 {[%emt 0:00:59]} 75. Rb5+ {[%emt 0:00:44]} Kc7 {[%emt 0:00:44]} 76. Rc5+ {[%emt 0:01:04]} Kb7 {[%emt 0:00:12]} 77. c4 {[%emt 0:00:18]} Rg6 {[%emt 0:00:28]} 78. Rf5 {[%emt 0:00:14]} Rh6 {[%emt 0:01:04]} 79. Kc5 {[%emt 0:00:23]} Kc7 {[%emt 0:00:44]} 80. Rf7+ {[%emt 0:01:16]} Kc8 {[%emt 0:00:07]} 81. Kb5 {[%emt 0:00:09]} Rh5+ {[%emt 0:00:17]} 82. c5 {[%emt 0:00:26]} Rh6 $1 {[%emt 0:00:06]} 83. Rf8+ {[%emt 0:00:41]} Kc7 {[%emt 0:00:20]} 84. Rg8 {[%emt 0:00:21]} Rf6 {[%emt 0:00:15]} 85. Ra8 {[%emt 0:00:54]} Kb7 {[%emt 0:00:24]} 86. Rg8 {[%emt 0:00:52]} Kc7 {[%emt 0:00:08]} 87. Rg5 {[%emt 0:00:02]} Rh6 {[%emt 0:00:15]} 88. Rg7+ {[%emt 0:00:14]} Kc8 {[%emt 0:00:05]} 89. Ra7 {[%emt 0:00:01]} Kb8 {[%emt 0:00:15]} 90. Ra4 {[%emt 0:01:00]} Rg6 {[%emt 0:00:10]} 91. Rd4 {[%emt 0:00:57]} Kc7 {[%emt 0:00:07]} 92. Rh4 {[%emt 0:00:29]} Rf6 {[%emt 0:00:14]} 93. Rh7+ {[%emt 0:00:19]} Kc8 {[%emt 0:00:05]} 94. Ra7 {[%emt 0:00:23]} Kb8 {[%emt 0:00:07]} 95. Rd7 {[%emt 0:00:05]} Kc8 {[%emt 0:00:31]} 96. Rd4 {[%emt 0:00:28]} Kc7 {[%emt 0:00:23]} 97. Ra4 {[%emt 0:00:38]} Kb7 {[%emt 0:00:27]} 98. Re4 {[%emt 0:02:46]} Kc7 {[%emt 0:00:08]} 99. Re8 {[%emt 0:00:13]} Rh6 {[%emt 0:00:21]} 100. Rg8 $1 {[%emt 0:01:30]} Rf6 {[%emt 0:00:08]} 101. Rg7+ {[%emt 0:01:20]} Kc8 {[%emt 0:00:07]} 102. Kc4 {[%emt 0:00:04]} Rh6 {[%emt 0:00:28]} 103. Rg5 {[%emt 0:00:26]} Kc7 {[%emt 0:00:31]} 104. Kd5 {[%emt 0:00:00]} Rf6 {[%emt 0:00:21]} 105. Rg7+ {[%emt 0:00:40]} Kc8 {[%emt 0:00:15]} 106. Re7 {[%emt 0:00:02]} Rh6 {[%emt 0:00:39]} 107. Rg7 {[%emt 0:00:40]} Rf6 {[%emt 0:00:16]} 108. Ke5 {[%emt 0:00:39]} Rh6 {[%emt 0:00:15]} 109. Kd4 {[%emt 0:00:48]} Rf6 {[%emt 0:00:13]} 110. Kc4 {[%emt 0:00:11]} Rh6 {[%emt 0:00:12]} 111. Kb5 {[%emt 0:00:01]} Rf6 {[%emt 0:00:11]} 112. Rg8+ {[%emt 0:00:05]} Kc7 {[%emt 0:00:12]} 113. Rg5 {[%emt 0:00:28]} Rh6 {[%emt 0:00:18]} 114. Rg7+ {[%emt 0:00:35]} Kc8 {[%emt 0:00:08]} 115. Ra7 {[%emt 0:00:10]} Kb8 {[%emt 0:00:24]} 116. Rd7 {[%emt 0:00:02]} Kc8 {[%emt 0:00:14]} 117. c6 {[%emt 0:00:21]} Rh1 {[%emt 0:00:17]} 118. Rd4 {[%emt 0:00:13]} Rb1+ {[%emt 0:01:08]} 119. Kc5 {[%emt 0:00:01]} Kc7 {[%emt 0:00:44]} 1/2-1/2

[Event "Israel-ch Youth U8-18 2024"]
[Site "Kfar Saba"]
[Date "2024.04.16"]
[Round "1.5"]
[White "Friedlich, Eyal"]
[Black "Uritsky, Yonathan"]
[Result "0-1"]
[ECO "E60"]
[WhiteElo "1859"]
[BlackElo "2231"]
[Annotator "TA"]
[PlyCount "128"]
[EventDate "2024.04.10"]
[EventType "swiss"]
[EventCountry "ISR"]
[SourceTitle "playchess.com"]
[Source "ChessBase"]
[SourceQuality "1"]
[TimeControl "5400+30"]

{[%evp 17,128,31,41,35,35,24,24,35,39,21,27,28,26,0,0,0,5,-14,0,0,58,34,29,34,32,17,80,20,16,-12,-18,-27,0,0,0,0,9,17,13,6,0,0,166,164,150,-240,-239,-242,-227,-242,-232,-233,-240,-240,-240,-312,-303,-287,-248,-305,-247,-536,-514,-506,-490,-455,-383,-392,-292,-284,-271,-247,-169,-169,-169,-169,-169,-169,-169,-210,-210,-186,-189,-189,-113,-113,-113,-135,-113,-117,-117,-117,-117,-117,-117,-1139,-1118,-5039,-4972,-5097,-4133,-29966,-29967,-29963,-29963,-29985,-29986,-29986,-29981,-29981,-29982,-29982,-29983]} 1. Nf3 {[%emt 0:00:05]} Nf6 {[%emt 0:00:07]} 2. g3 {[%emt 0:00:09]} g6 {[%emt 0:00:08]} 3. b3 {[%emt 0:00:06]} Bg7 {[%emt 0:00:22]} 4. Bb2 {[%emt 0:00:07]} O-O {[%emt 0:00:34]} 5. Bg2 {[%emt 0:00:27]} c5 {[%emt 0:05:18]} 6. c4 {[%emt 0:00:48]} Nc6 {[%emt 0:00:49]} 7. O-O {[%emt 0:03:39]} d6 {[%emt 0:01:22]} 8. d4 {[%emt 0:02:34]} cxd4 {[%emt 0:00:29]} 9. Nxd4 {[%emt 0:00:18]} Bd7 {[%emt 0:00:21]} 10. e4 {[%emt 0:07:22]} Qa5 {[%emt 0:06:26]} 11. Nc3 {[%emt 0:11:50]} Nxd4 {[%emt 0:02:45]} 12. Qxd4 {[%emt 0:01:53] White has an edge.} Bc6 {[%emt 0:00:56][%cal Of6e4]} 13. Qd3 {[%emt 0:08:30]} (13. Nd5 $5 Nh5 14. Bc3 (14. Nxe7+ Kh8 $15) 14... Qxc3 15. Qxc3 Bxc3 16. Nxc3 $11) 13... Nd7 {[%emt 0:07:09]} 14. Rab1 {[%emt 0:09:27]} a6 {[%emt 1:10:44]} 15. Rfd1 {[%emt 0:14:07]} b5 {[%emt 0:00:00]} 16. Nd5 {[%emt 0:01:17]} Bxd5 {[%emt 0:00:00]} (16... Qxa2 $2 17. Nxe7+ Kh8 18. Bxg7+ (18. Nxc6 Bxb2 19. Qd2 bxc4 $18) 18... Kxg7 19. Qxd6 $18 (19. Nxc6 Ne5 $18)) 17. Qxd5 {[%emt 0:01:21]} Bxb2 {[%emt 0:00:00]} 18. Rxb2 {[%emt 0:00:06]} Nb6 {[%emt 0:00:00]} (18... Rac8 $11) 19. Qb7 {[%emt 0:07:45]} Rfe8 {[%emt 0:00:00] [#]} 20. e5 $1 {[%emt 0:04:27]} Rab8 {[%emt 0:00:00] Black is weak on the light squares} (20... bxc4 21. exd6) 21. Qa7 {[%emt 0:04:55]} dxe5 {[%emt 0:00:00]} (21... Qc3 $11 {keeps the balance.} 22. Re2 bxc4) 22. c5 {[%emt 0:01:45]} (22. Bc6 $16 {aiming for c5.} Rf8 23. cxb5 (23. Qxe7 bxc4 24. bxc4 Nc8 $11)) 22... Qc3 $11 {[%emt 0:00:00][%csl LRb2,LRc5]} 23. Rbd2 {[%emt 0:00:24]} Qxc5 {[%emt 0:00:00]} 24. Qxa6 {[%emt 0:01:57]} f5 {[%emt 0:00:00]} 25. a4 $36 {[%emt 0:04:05][%mdl 2048] White has good play.} bxa4 {[%emt 0:00:00]} 26. bxa4 {[%emt 0:01:25][%cal Bb3a4,Ba4a5][%mdl 32] Hoping for a5.} e4 {[%emt 0:00:00]} 27. a5 $1 {[%emt 0:00:40]} Na4 {[%emt 0:00:00]} 28. Qe6+ {[%emt 0:01:01]} Kf8 {[%emt 0:00:00]} 29. Bf1 {[%emt 0:01:51]} Qxa5 {[%emt 0:00:00] [#]} (29... Nc3 $11 30. Ra1 Nb5) 30. Bc4 $1 $18 {[%emt 0:00:11][%csl Gc4][%cal Re6f7]} Kg7 {[%emt 0:00:00] [#] And now ...Kh6 would win.} 31. Rd5 $2 {[%emt 0:00:30]} (31. Rd7 $1 $16 {[%cal Rd7e7]} Kh6 32. Rxe7 Rxe7 33. Qxe7) 31... Qb6 $19 {[%emt 0:00:00]} 32. Qe5+ {[%emt 0:06:58]} Qf6 {[%emt 0:00:00]} 33. Bb5 {[%emt 0:01:00]} Qxe5 {[%emt 0:00:00]} 34. Rxe5 {[%emt 0:00:08] [#]} Rxb5 {[%emt 0:00:00]} 35. Rxb5 {[%emt 0:00:09][%mdl 4096] Endgame. KRR-KRN} Nc3 $1 {[%emt 0:00:00][%csl LRb5,LRd1]} 36. Rbd5 {[%emt 0:00:09]} Nxd1 {[%emt 0:00:00]} 37. Rxd1 {[%emt 0:00:06] KR-KR} Ra8 {[%emt 0:00:00]} 38. Rd7 {[%emt 0:01:00]} Kf6 {[%emt 0:00:00]} 39. h3 $2 {[%emt 0:00:47]} (39. h4 {is the only way for White.}) 39... Ra1+ {[%emt 0:00:00]} 40. Kg2 {[%emt 0:00:07]} Ra2 {[%emt 0:00:00]} 41. Kf1 {[%emt 0:00:22]} h5 {[%emt 0:00:00]} 42. h4 {[%emt 0:00:35]} e6 {[%emt 0:00:00][%cal Of5f4]} 43. Rb7 {[%emt 0:00:15]} Rd2 {[%emt 0:00:00]} 44. Ra7 {[%emt 0:01:36]} g5 {[%emt 0:00:00]} 45. hxg5+ {[%emt 0:01:40]} Kxg5 {[%emt 0:00:00]} 46. Rg7+ {[%emt 0:00:10]} Kf6 {[%emt 0:00:00]} 47. Rh7 {[%emt 0:00:04]} Kg6 {[%emt 0:00:00]} 48. Re7 {[%emt 0:00:05]} Rd6 {[%emt 0:00:00][%cal Oh5h4] ...h4! would now be deadly.} 49. Kg2 {[%emt 0:00:10]} Ra6 {[%emt 0:00:00]} 50. Re8 {[%emt 0:00:11]} Kf6 {[%emt 0:00:00]} ({Black should play} 50... Kg7 $19 {[%cal Oh5h4]} 51. Kf1 h4 52. gxh4 Kf6) 51. Rh8 $17 {[%emt 0:00:06]} Ra2 {[%emt 0:00:00] Threatens to win with ...e3.} 52. Kf1 {[%emt 0:00:07]} Ke5 {[%emt 0:00:48][%cal Oe4e3] ...e3! is the strong threat.} 53. Rxh5 {[%emt 0:00:16] [#]} e3 $1 {[%emt 0:00:01][%mdl 512] Black is more active.} 54. fxe3 {[%emt 0:01:23]} Ke4 {[%emt 0:00:01][%cal Oe4f3] Strongly threatening ...Kf3!} 55. Rh6 {[%emt 0:01:32]} Kf3 {[%emt 0:00:21][%cal Ra2a1]} (55... Kxe3 $6 56. Rxe6+ Kf3 57. Kg1 $11) 56. Ke1 $2 {[%emt 0:00:23][%mdl 8192]} (56. Kg1 $17) 56... e5 $19 {[%emt 0:00:21]} (56... Kxe3 57. Rxe6+ Kf3 58. Rg6 $11) 57. Re6 {[%emt 0:01:57]} e4 {[%emt 0:00:02]} (57... Kxg3 58. Rxe5 Ra1+ 59. Ke2 $11) 58. Re5 {[%emt 0:01:00]} Kxe3 {[%emt 0:00:27][%cal Ra2a1]} 59. Kf1 {[%emt 0:00:18]} f4 {[%emt 0:04:40] Black mates.} 60. gxf4 {[%emt 0:00:07]} Kf3 $1 {[%emt 0:00:09][%cal Ra2a1]} 61. Ke1 {[%emt 0:00:34]} e3 {[%emt 0:00:11][%cal Ra2a1]} (61... Kxf4 62. Rh5 $11) 62. Kd1 {[%emt 0:01:23]} e2+ {[%emt 0:00:15]} ({Weaker is} 62... Kxf4 63. Re8 $11) 63. Ke1 {[%emt 0:00:11]} Ra1+ {[%emt 0:00:04]} ({And not} 63... Kxf4 64. Rxe2 Ra1+ 65. Kd2 $11) 64. Kd2 {[%emt 0:00:03]} Rd1+ {[%emt 0:00:05] Weighted Error Value: White=0.57/Black=0.15 (very precise) .  Loses game:     	White=2     	Black=1      Mistake:       	White=2     	Black=3      Inaccurate:     	White=2     	Black=2      OK:         	White=13    	Black=23     Best:        	White=3     	Black=5      Strong:       	White=2     	---} ({Inferior is} 64... Kxf4 65. Rxe2 Ra2+ 66. Kd1 $11) 0-1